bitfinex/quotes_BTCUSD_20251021
["timestamp","ask_amount","ask_price","bid_price","bid_amount"]
[1761044587296,3.76774609,108580.0,108570.0,0.00069933]
[1761044587496,3.88554609,108580.0,108570.0,0.00069933]
[1761044589172,3.481634,108580.0,108570.0,0.00069933]
[1761044589376,3.79213308,108580.0,108570.0,0.00069933]
[1761044590384,3.74213308,108580.0,108570.0,0.00069933]
[1761044590613,4.19963917,108580.0,108570.0,0.00069933]
[1761044596126,4.08183917,108580.0,108570.0,0.00069933]
[1761044596354,4.19959917,108580.0,108570.0,0.00069933]
[1761044597023,4.28941818,108580.0,108570.0,0.00069933]
[1761044597233,4.19959917,108580.0,108570.0,0.00069933]
[1761044598229,4.0886764,108580.0,108570.0,0.00069933]
[1761044601927,1.0886764,108580.0,108570.0,0.00069933]
[1761044602572,0.9709164,108580.0,108570.0,0.00069933]
[1761044602795,1.0886764,108580.0,108570.0,0.00069933]
[1761044603008,1.0886364,108580.0,108570.0,0.00069933]
[1761044603225,1.12768503,108580.0,108570.0,0.00069933]
[1761044603366,1.0886364,108580.0,108570.0,0.00069933]
[1761044604821,1.60356603,108580.0,108570.0,0.00069933]
[1761044605900,4.60356603,108580.0,108570.0,0.00069933]
[1761044614317,4.60352603,108580.0,108570.0,0.00069933]
[1761044614731,4.63122684,108580.0,108570.0,0.00069933]
[1761044614892,4.72104585,108580.0,108570.0,0.00069933]
[1761044617209,4.63122684,108580.0,108570.0,0.00069933]
[1761044617370,4.44703086,108580.0,108570.0,0.00069933]
[1761044617590,4.63122684,108580.0,108570.0,0.00069933]
[1761044620561,4.22728316,108580.0,108570.0,0.00069933]
[1761044621302,4.13742415,108580.0,108570.0,0.00069933]
[1761044621704,4.18561708,108580.0,108570.0,0.00069933]
[1761044622514,3.32953679,108580.0,108570.0,0.00069933]
[1761044622745,4.13742415,108580.0,108570.0,0.00069933]
[1761044623175,4.54136783,108580.0,108570.0,0.00073933]
[1761044623904,4.13742415,108580.0,108570.0,0.00073933]
[1761044624243,4.19630487,108580.0,108570.0,0.00073933]
[1761044632282,4.60024855,108580.0,108570.0,0.00073933]
[1761044632489,3.38841751,108580.0,108570.0,0.00073933]
[1761044632696,4.13742415,108580.0,108570.0,0.00073933]
[1761044633108,4.54136783,108580.0,108570.0,0.00073933]
[1761044637098,3.32953679,108580.0,108570.0,0.00073933]
[1761044637311,4.13742415,108580.0,108570.0,0.00073933]
[1761044638477,4.63118684,108580.0,108570.0,0.00073933]
[1761044638693,4.72100585,108580.0,108570.0,0.00073933]
[1761044641890,5.46494953,108580.0,108570.0,1e-08]
[1761044642089,6.33192984,108580.0,108570.0,1e-08]
[1761044642415,6.30901917,108580.0,108570.0,1e-08]
[1761044643264,6.31001917,108580.0,108570.0,1e-08]
[1761044643483,4.98054813,108580.0,108570.0,1e-08]
[1761044643704,5.09710813,108580.0,108570.0,1e-08]
[1761044644068,5.09810813,108580.0,108570.0,1e-08]
[1761044644428,3.88627709,108580.0,108570.0,1e-08]
[1761044644630,5.09810813,108580.0,108570.0,1e-08]
[1761044644848,0.22344054,108570.0,108540.0,0.01536652]
[1761044645074,0.58819057,108550.0,108540.0,0.28944692]
[1761044645276,0.18424689,108550.0,108540.0,0.28944692]
[1761044646044,0.18424689,108550.0,108540.0,0.10518553]
[1761044646243,0.18424689,108550.0,108540.0,0.30787577]
[1761044646547,0.58819057,108550.0,108540.0,0.28944939]
[1761044650742,0.58819057,108550.0,108540.0,0.10518553]
[1761044650939,0.58819057,108550.0,108540.0,0.10623944]
[1761044651579,0.58819057,108550.0,108540.0,0.12466582]
[1761044652372,0.58819057,108550.0,108540.0,0.10623944]
[1761044653362,0.58819057,108550.0,108540.0,0.12466582]
[1761044653760,0.58819057,108550.0,108540.0,0.30892968]
[1761044653946,0.58819057,108550.0,108540.0,0.2905033]
[1761044654479,0.58619057,108550.0,108540.0,0.2905033]
[1761044654696,0.58619057,108550.0,108540.0,0.10623944]
[1761044654906,0.58619057,108550.0,108540.0,0.12466582]
[1761044655413,0.58619057,108550.0,108540.0,0.30892968]
[1761044655738,0.61587489,108560.0,108550.0,0.18424689]
[1761044655739,0.0277013,108560.0,108550.0,0.18424689]
[1761044655945,0.03004944,108570.0,108560.0,0.18422991]
[1761044656067,0.21426239,108570.0,108560.0,0.58817359]
[1761044656269,0.21426239,108570.0,108560.0,0.18422991]
[1761044656713,0.61820607,108570.0,108550.0,0.79548958]
[1761044656936,0.61820607,108570.0,108550.0,0.41924247]
[1761044657304,0.18422991,108560.0,108550.0,0.75924247]
[1761044657650,0.58817359,108560.0,108550.0,0.7315459]
[1761044658206,0.18422991,108560.0,108550.0,0.7315459]
[1761044658896,0.61820607,108570.0,108550.0,0.7315459]
[1761044659099,0.61820607,108570.0,108550.0,0.7215459]
[1761044659293,0.61820607,108570.0,108560.0,0.01842299]
[1761044660240,0.18422991,108560.0,108550.0,0.7325459]
[1761044660442,0.99211727,108560.0,108550.0,0.09181901]
[1761044660647,0.18422991,108560.0,108550.0,0.3925059]
[1761044660853,0.58817359,108560.0,108550.0,0.20725901]
[1761044661065,0.58817359,108560.0,108550.0,0.20796155]
[1761044661669,0.18422991,108560.0,108550.0,0.39220844]
[1761044661871,0.58817359,108560.0,108550.0,0.20796155]
[1761044663412,0.58817359,108560.0,108550.0,0.20896155]
[1761044663825,0.58817359,108560.0,108550.0,0.20996155]
[1761044666817,0.58813408,108560.0,108550.0,0.20996155]
[1761044669564,0.58813408,108560.0,108550.0,0.00270254]
[1761044669793,0.61705005,108560.0,108550.0,0.12010254]
[1761044670214,0.64475086,108560.0,108550.0,0.11910254]
[1761044671075,0.64475086,108560.0,108550.0,0.12010254]
[1761044672331,0.64475086,108560.0,108550.0,0.11910254]
[1761044672765,0.64475086,108560.0,108550.0,0.12010254]
[1761044675093,0.21314588,108560.0,108550.0,0.12010254]
[1761044675305,0.58813408,108560.0,108550.0,0.12010254]
[1761044679494,0.58813408,108560.0,108550.0,0.00270254]
[1761044679676,0.18422991,108560.0,108550.0,0.00270254]
[1761044679907,0.60376492,108560.0,108550.0,0.00270254]
[1761044680948,0.58813408,108560.0,108550.0,0.00270254]
[1761044681481,0.74861057,108560.0,108550.0,0.00270254]
[1761044682093,0.7639476,108560.0,108550.0,0.00270254]
[1761044682302,0.74861057,108560.0,108550.0,0.00070254]
[1761044682704,0.74861057,108560.0,108550.0,0.00170254]
[1761044683292,0.58813408,108560.0,108550.0,0.00170254]
[1761044684361,0.58813408,108560.0,108550.0,0.00070254]
[1761044684654,0.58813408,108560.0,108550.0,0.00170254]
[1761044698637,0.40390417,108560.0,108550.0,0.00170254]
[1761044698838,0.58813408,108560.0,108550.0,0.00170254]
[1761044700548,0.60700794,108560.0,108550.0,0.00170254]
[1761044704086,0.20310377,108560.0,108550.0,0.00170254]
[1761044704294,0.60700794,108560.0,108550.0,0.00170254]
[1761044704514,0.63471216,108560.0,108550.0,0.00170254]
[1761044706685,0.23080799,108560.0,108550.0,0.00170254]
[1761044706888,0.63471216,108560.0,108550.0,0.00170254]
[1761044708793,0.63471216,108560.0,108510.0,0.0002]
[1761044708794,0.18429782,108520.0,108510.0,0.0002]
[1761044708988,1.12777594,108520.0,108510.0,0.0002]
[1761044709191,1.12777594,108520.0,108510.0,0.00873388]
[1761044709392,0.94347812,108520.0,108510.0,0.00873388]
[1761044709595,0.74735118,108520.0,108510.0,0.00873388]
[1761044709814,0.70544199,108520.0,108510.0,0.00873388]
[1761044710027,0.70544199,108520.0,108510.0,0.00922907]
[1761044710248,0.70544199,108520.0,108510.0,0.01022907]
[1761044710832,0.70544199,108520.0,108510.0,0.00922907]
[1761044711283,0.73815368,108520.0,108510.0,0.00922907]
[1761044711492,0.70544199,108520.0,108510.0,0.00922907]
[1761044711697,0.70544199,108520.0,108510.0,0.00422907]
[1761044712418,1.10934616,108520.0,108510.0,0.00422907]
[1761044713049,1.19916517,108520.0,108510.0,0.00422907]
[1761044713273,1.19916517,108520.0,108510.0,0.00049519]
[1761044713461,4.28898418,108520.0,108510.0,0.00049519]
[1761044713720,4.28898418,108520.0,108510.0,1e-08]
[1761044713900,4.62898418,108520.0,108510.0,1e-08]
[1761044714428,4.66516646,108520.0,108510.0,1e-08]
[1761044714576,4.69215954,108520.0,108510.0,0.00140574]
[1761044716223,0.70393584,108520.0,108510.0,0.00140574]
[1761044716429,0.70544199,108520.0,108510.0,0.00140574]
[1761044716631,0.58820199,108520.0,108510.0,0.00140574]
[1761044716834,0.70544199,108520.0,108510.0,0.00140574]
[1761044718061,1.19916517,108520.0,108510.0,0.00140574]
[1761044718279,4.31720874,108520.0,108510.0,0.00140574]
[1761044718664,4.65720874,108520.0,108510.0,0.00140574]
[1761044718877,4.22508001,108520.0,108510.0,0.00140574]
[1761044719075,3.88508001,108520.0,108510.0,0.00140574]
[1761044719282,0.36393584,108520.0,108510.0,0.00140574]
[1761044719486,0.795261,108520.0,108510.0,0.00140574]
[1761044720735,0.39135683,108520.0,108510.0,0.00140574]
[1761044720940,0.70544199,108520.0,108510.0,0.00140574]
[1761044725288,0.73315565,108520.0,108510.0,0.00140574]
[1761044727960,1.07315565,108520.0,108510.0,0.00140574]
[1761044728171,1.04544199,108520.0,108510.0,0.00140574]
[1761044728798,1.4502178,108520.0,108510.0,0.00140574]
[1761044729025,1.54003681,108520.0,108510.0,0.00140574]
[1761044733376,1.55449006,108520.0,108510.0,0.00140574]
[1761044733794,1.54003681,108520.0,108510.0,0.00140574]
[1761044735270,0.73135683,108520.0,108510.0,0.00140574]
[1761044735476,1.54003681,108520.0,108510.0,0.00140574]
[1761044738145,0.52429782,108520.0,108510.0,0.00140574]
[1761044738304,1.04583781,108520.0,108510.0,0.00140574]
[1761044738515,1.4501778,108520.0,108510.0,0.00140574]
[1761044739139,1.04583781,108520.0,108510.0,0.00140574]
[1761044739544,1.1101778,108520.0,108510.0,0.00140574]
[1761044740621,0.70583781,108520.0,108510.0,0.00140574]
[1761044741017,1.28900868,108520.0,108500.0,1.006044]
[1761044741217,1.54176423,108510.0,108500.0,1.00428763]
[1761044741335,4.55156062,108510.0,108500.0,0.99574765]
[1761044741553,4.98137963,108510.0,108500.0,0.99574765]
[1761044741761,4.95315507,108510.0,108500.0,0.99574765]
[1761044742041,4.95315507,108510.0,108500.0,0.45817666]
[1761044742852,4.95315507,108510.0,108500.0,0.0092917]
[1761044743382,4.95315507,108510.0,108500.0,1e-08]
[1761044743787,6.16617504,108510.0,108500.0,1e-08]
[1761044745525,4.95315507,108510.0,108500.0,1e-08]
[1761044746548,5.03517279,108510.0,108500.0,1e-08]
[1761044746725,5.04367348,108510.0,108500.0,1e-08]
[1761044746930,5.04267348,108510.0,108500.0,0.00035154]
[1761044747359,5.05813066,108510.0,108500.0,0.00035154]
[1761044747575,5.04367348,108510.0,108500.0,0.00035154]
[1761044747770,5.05759873,108510.0,108500.0,0.00035154]
[1761044747998,5.05659873,108510.0,108500.0,0.00035154]
[1761044750517,5.646571,108490.0,108480.0,1e-08]
[1761044750722,4.73038905,108490.0,108480.0,1e-08]
[1761044750919,4.17266678,108490.0,108480.0,1e-08]
[1761044751305,4.63356342,108490.0,108480.0,1e-08]
[1761044752124,4.64802341,108490.0,108480.0,1e-08]
[1761044752589,5.0523634,108490.0,108480.0,1e-08]
[1761044752719,4.75908911,108490.0,108480.0,1e-08]
[1761044753188,4.29921627,108490.0,108480.0,1e-08]
[1761044753590,4.75908911,108490.0,108480.0,1e-08]
[1761044754444,4.74462912,108490.0,108480.0,1e-08]
[1761044754613,4.7808114,108490.0,108480.0,1e-08]
[1761044756200,3.86106572,108490.0,108480.0,1e-08]
[1761044756840,3.86206572,108490.0,108480.0,1e-08]
[1761044757683,3.8765261,108490.0,108480.0,1e-08]
[1761044759319,3.52436578,108480.0,108470.0,1e-08]
[1761044759523,4.62374948,108480.0,108470.0,1e-08]
[1761044760133,4.62744668,108480.0,108470.0,1e-08]
[1761044761033,4.64190587,108480.0,108470.0,1e-08]
[1761044761248,4.62744668,108480.0,108470.0,1e-08]
[1761044764985,4.62744668,108480.0,108470.0,0.00035169]
[1761044766994,3.707701,108480.0,108470.0,0.00035169]
[1761044767154,4.62744668,108480.0,108470.0,0.00035169]
[1761044768664,4.28477384,108480.0,108470.0,0.00035169]
[1761044768851,4.16757384,108480.0,108470.0,0.00035169]
[1761044769065,4.74464668,108480.0,108470.0,0.00035169]
[1761044769488,4.16757384,108480.0,108470.0,0.00035169]
[1761044769702,4.28477384,108480.0,108470.0,0.00035169]
[1761044769915,4.74464668,108480.0,108470.0,0.00035169]
[1761044770571,3.824901,108480.0,108470.0,0.00035169]
[1761044770786,0.0036972,108480.0,108460.0,0.17994502]
[1761044770986,0.20649115,108480.0,108470.0,0.01810524]
[1761044771193,0.18436578,108480.0,108470.0,0.01810524]
[1761044771391,0.20279395,108480.0,108470.0,0.01810524]
[1761044772795,0.20279395,108480.0,108470.0,0.20248801]
[1761044773024,0.30155594,108490.0,108470.0,0.20248801]
[1761044773453,0.18436578,108480.0,108470.0,0.20248801]
[1761044773639,0.18436578,108480.0,108470.0,0.01810524]
[1761044774893,0.18436578,108480.0,108470.0,0.01910524]
[1761044775715,0.18436578,108480.0,108470.0,0.01943827]
[1761044775716,0.66266679,108480.0,108470.0,0.01943827]
[1761044775928,0.18436578,108480.0,108470.0,0.01943827]
[1761044776133,0.20279395,108480.0,108470.0,0.01943827]
[1761044776347,0.20279395,108480.0,108470.0,0.01843827]
[1761044779212,0.66266679,108480.0,108470.0,0.01843827]
[1761044779440,0.64423862,108480.0,108470.0,0.01843827]
[1761044779651,0.18436578,108480.0,108470.0,0.01843827]
[1761044779867,0.20279395,108480.0,108470.0,0.01843827]
[1761044783785,0.20279395,108480.0,108470.0,0.20282104]
[1761044784014,0.20279395,108480.0,108470.0,0.01843827]
[1761044784297,0.18436578,108480.0,108470.0,0.20282104]
[1761044784559,0.20279395,108480.0,108470.0,0.01843827]
[1761044784767,0.60728199,108480.0,108470.0,0.20282104]
[1761044784975,0.58885382,108480.0,108470.0,0.01843827]
[1761044785846,0.58885382,108480.0,108470.0,0.20282104]
[1761044786163,0.18436578,108480.0,108470.0,0.20282104]
[1761044786374,0.18435594,108490.0,108480.0,0.18436578]
[1761044786605,0.3110701,108510.0,108490.0,0.18434398]
[1761044786606,0.19353054,108510.0,108490.0,0.18434398]
[1761044786805,0.19353054,108510.0,108500.0,0.20141423]
[1761044786806,0.18446314,108510.0,108500.0,0.20141423]
[1761044788066,0.18446314,108510.0,108500.0,0.69572128]
[1761044788268,0.00014834,108510.0,108500.0,0.2741508]
[1761044788476,0.18446314,108510.0,108500.0,0.2741508]
[1761044788694,0.18446314,108510.0,108500.0,0.28767032]
[1761044789300,0.00014834,108510.0,108500.0,0.28767032]
[1761044789550,0.00014834,108510.0,108500.0,0.2741508]
[1761044789752,0.18446314,108510.0,108500.0,0.2741508]
[1761044790154,0.00014834,108510.0,108500.0,0.2741508]
[1761044790355,0.18446314,108510.0,108500.0,0.2741508]
[1761044790587,0.00014834,108510.0,108500.0,0.2741508]
[1761044790792,0.00014834,108510.0,108500.0,0.98095026]
[1761044791002,0.00014834,108510.0,108500.0,1.35713254]
[1761044791853,0.00014834,108510.0,108500.0,1.42764804]
[1761044793523,0.00014834,108510.0,108500.0,1.35713254]
[1761044793800,0.00014834,108510.0,108500.0,0.43081901]
[1761044794001,0.18446314,108510.0,108500.0,0.43081901]
[1761044794398,0.18446314,108510.0,108500.0,0.6151508]
[1761044794608,0.18446314,108510.0,108500.0,0.43081901]
[1761044794817,0.18446314,108510.0,108500.0,0.09081901]
[1761044795026,0.18446314,108510.0,108500.0,0.1089711]
[1761044795454,0.18446314,108510.0,108500.0,0.29330289]
[1761044795686,0.18446314,108510.0,108500.0,0.2751508]
[1761044795936,0.18446314,108510.0,108500.0,0.001]
[1761044796149,0.20289131,108510.0,108500.0,0.01917717]
[1761044796370,0.18446314,108510.0,108500.0,0.01917717]
[1761044796611,0.20289131,108510.0,108500.0,0.001]
[1761044797675,0.18433179,108500.0,108490.0,0.01843487]
[1761044797885,0.18433179,108500.0,108490.0,0.10825388]
[1761044799173,0.18433179,108500.0,108490.0,0.20689901]
[1761044799822,0.18433179,108500.0,108480.0,0.11708]
[1761044799823,0.18434878,108490.0,108480.0,0.11708]
[1761044800047,0.18434878,108490.0,108480.0,0.39126479]
[1761044800751,0.18434878,108490.0,108480.0,0.20689901]
[1761044800968,0.18434878,108490.0,108480.0,0.39126479]
[1761044801187,0.18434878,108490.0,108480.0,0.20689901]
[1761044801815,0.18434878,108490.0,108480.0,0.20789901]
[1761044802013,0.18434878,108490.0,108480.0,0.39226479]
[1761044802237,0.18434878,108490.0,108480.0,0.20789901]
[1761044803641,0.18434878,108490.0,108480.0,0.39226479]
[1761044810875,0.18434878,108490.0,108480.0,0.79660606]
[1761044811584,0.18434878,108490.0,108480.0,0.39226479]
[1761044811818,0.19422231,108500.0,108480.0,0.39226479]
[1761044812097,0.19422231,108500.0,108490.0,0.01760592]
[1761044816814,0.18434878,108490.0,108480.0,0.08981901]
[1761044817033,0.18436578,108480.0,108470.0,0.11704]
[1761044817257,0.18439065,108470.0,108460.0,0.52439977]
[1761044817469,0.58873192,108470.0,108450.0,0.53749111]
[1761044817682,0.58873192,108470.0,108450.0,0.31462679]
[1761044817683,0.40434127,108460.0,108450.0,0.31462679]
[1761044817889,0.58874104,108460.0,108450.0,0.20685901]
[1761044818101,0.58874104,108460.0,108450.0,0.20756253]
[1761044818533,0.58874104,108460.0,108450.0,0.39212806]
[1761044818756,0.18439977,108460.0,108450.0,0.39212806]
[1761044819370,0.18439977,108460.0,108450.0,0.39312806]
[1761044820261,0.18439977,108460.0,108450.0,0.27608806]
[1761044821127,0.18439065,108470.0,108450.0,0.27608806]
[1761044821346,0.18439065,108470.0,108460.0,0.01843997]
[1761044821554,0.18439065,108470.0,108460.0,0.20319147]
[1761044821758,0.18439065,108470.0,108460.0,0.0187917]
[1761044821919,0.18439065,108470.0,108460.0,0.20319147]
[1761044821920,0.18438277,108470.0,108460.0,0.20319147]
[1761044822841,0.18438277,108470.0,108460.0,0.41005048]
[1761044823050,0.18438277,108470.0,108460.0,0.39161051]
[1761044824717,0.19358406,108480.0,108460.0,0.39161051]
[1761044824974,0.19358406,108480.0,108470.0,0.01843827]
[1761044825178,0.19358406,108480.0,108470.0,0.20282104]
[1761044825592,0.19358406,108480.0,108470.0,0.01843827]
[1761044828035,0.18438277,108470.0,108460.0,0.20721074]
[1761044829739,0.90011839,108480.0,108460.0,0.20721074]
[1761044829935,0.18438277,108470.0,108460.0,0.20721074]
[1761044830338,0.18438277,108470.0,108460.0,0.39161051]
[1761044830541,0.89576761,108480.0,108460.0,0.20721074]
[1761044830744,0.18438277,108470.0,108460.0,0.20721074]
[1761044831817,0.18923328,108480.0,108460.0,0.39161051]
[1761044832021,0.18438277,108470.0,108460.0,0.39161051]
[1761044832423,0.18923328,108480.0,108460.0,0.39161051]
[1761044832582,0.18438277,108470.0,108460.0,0.39161051]
[1761044833184,0.19356621,108490.0,108470.0,0.18438277]
[1761044833394,0.18436578,108480.0,108470.0,0.27420178]
[1761044833881,0.31060621,108490.0,108470.0,0.27420178]
[1761044834049,0.31060621,108490.0,108480.0,0.01843657]
[1761044834657,0.19356621,108490.0,108480.0,0.01843657]
[1761044837547,0.19356621,108490.0,108480.0,0.0308593]
[1761044840826,0.71567797,108500.0,108480.0,0.21522508]
[1761044841026,0.18434878,108490.0,108480.0,0.28660752]
[1761044841435,0.31126231,108500.0,108480.0,0.28660752]
[1761044841659,0.18434878,108490.0,108480.0,0.28660752]
[1761044841972,0.31126231,108500.0,108480.0,0.40360752]
[1761044842183,0.31126231,108500.0,108490.0,0.01843487]
[1761044842554,0.31126231,108500.0,108490.0,0.20278365]
[1761044842555,0.19422231,108500.0,108490.0,0.20278365]
[1761044843347,0.18500573,108500.0,108490.0,0.20278365]
[1761044843891,0.00067394,108500.0,108490.0,0.20278365]
[1761044844505,0.18500573,108500.0,108490.0,0.29260266]
[1761044844866,0.00067394,108500.0,108490.0,0.27416779]
[1761044846389,0.18500573,108500.0,108490.0,0.27416779]
[1761044846596,0.00067394,108500.0,108490.0,0.27416779]
[1761044847448,0.18500573,108500.0,108490.0,0.27416779]
[1761044847657,0.18500573,108500.0,108490.0,0.39116779]
[1761044847862,0.18500573,108500.0,108490.0,0.08981901]
[1761044848092,0.18434878,108490.0,108480.0,0.19678795]
[1761044848297,0.18434878,108490.0,108480.0,0.40360696]
[1761044849367,0.18500573,108500.0,108480.0,0.40360696]
[1761044849561,0.60784956,108500.0,108480.0,0.40360696]
[1761044849783,0.18434878,108490.0,108480.0,0.40360696]
[1761044850868,0.58874925,108490.0,108480.0,0.40460696]
[1761044851834,0.7064062,108500.0,108490.0,0.18434878]
[1761044852085,0.7064062,108500.0,108490.0,0.20278365]
[1761044852446,0.7064062,108500.0,108490.0,0.01843487]
[1761044853172,0.5894062,108500.0,108490.0,0.01843487]
[1761044855814,0.18500573,108500.0,108490.0,0.01843487]
[1761044856072,0.60783437,108500.0,108490.0,0.01843487]
[1761044856376,0.5894062,108500.0,108490.0,0.01843487]
[1761044858387,0.18500573,108500.0,108490.0,0.20278365]
[1761044858589,0.60783437,108500.0,108490.0,0.20278365]
[1761044858791,0.5894062,108500.0,108490.0,0.20278365]
[1761044861280,0.5894062,108500.0,108490.0,0.01843487]
[1761044861484,0.18500573,108500.0,108490.0,0.01843487]
[1761044861684,0.60783437,108500.0,108490.0,0.01843487]
[1761044861828,0.5894062,108500.0,108490.0,0.01843487]
[1761044862949,0.99380667,108500.0,108490.0,0.01843487]
[1761044863828,0.5894062,108500.0,108490.0,0.01843487]
[1761044865917,0.18434878,108490.0,108480.0,0.21924174]
[1761044866123,0.58874925,108490.0,108480.0,0.21924174]
[1761044866325,0.58874925,108490.0,108480.0,0.20681901]
[1761044866491,0.58874925,108490.0,108480.0,0.20677901]
[1761044866692,0.18436578,108480.0,108460.0,0.26149414]
[1761044866925,0.58876625,108480.0,108470.0,0.22517728]
[1761044867128,0.99316672,108480.0,108470.0,0.08981901]
[1761044867301,0.99316672,108480.0,108470.0,0.22476911]
[1761044867490,0.99316672,108480.0,108470.0,0.20673901]
[1761044867491,0.58876625,108480.0,108470.0,0.20673901]
[1761044867943,0.58876625,108480.0,108470.0,0.39112178]
[1761044869749,0.58876625,108480.0,108470.0,0.39212178]
[1761044870406,0.58876625,108480.0,108470.0,0.20773901]
[1761044870889,0.58876625,108480.0,108470.0,0.39212178]
[1761044872436,0.18436578,108480.0,108470.0,0.39212178]
[1761044872789,0.18436578,108480.0,108470.0,0.79652225]
[1761044874424,0.18436578,108480.0,108470.0,0.61213948]
[1761044874848,0.18436578,108480.0,108470.0,0.20773901]
[1761044875047,0.18436578,108480.0,108470.0,0.61213948]
[1761044875862,0.18436578,108480.0,108470.0,0.79652225]
[1761044877114,0.18436578,108480.0,108470.0,0.39212178]
[1761044877311,0.18436578,108480.0,108470.0,0.79652225]
[1761044878124,0.18436578,108480.0,108470.0,0.39212178]
[1761044878330,0.18436578,108480.0,108470.0,0.79652225]
[1761044880874,0.18436578,108480.0,108470.0,0.39212178]
[1761044881089,0.18436578,108480.0,108470.0,0.61213948]
[1761044881479,0.58876625,108480.0,108470.0,0.20773901]
[1761044882561,0.18436578,108480.0,108470.0,0.20773901]
[1761044882761,0.99316672,108480.0,108470.0,0.09081901]
[1761044882984,0.99316672,108480.0,108470.0,0.10925728]
[1761044883347,1.08298573,108480.0,108470.0,0.01943827]
[1761044883547,1.42298573,108480.0,108470.0,0.001]
[1761044885238,1.91720521,108480.0,108470.0,0.001]
[1761044885410,4.91720521,108480.0,108470.0,0.001]
[1761044885633,0.18438277,108470.0,108460.0,0.00035173]
[1761044885795,1.12853188,108470.0,108460.0,0.00035173]
[1761044885970,1.11010371,108470.0,108460.0,0.00035173]
[1761044886172,4.84975943,108470.0,108460.0,0.00035173]
[1761044886390,5.06235243,108470.0,108460.0,0.00035173]
[1761044887018,4.62974173,108470.0,108460.0,0.00035173]
[1761044889298,5.0341422,108470.0,108460.0,0.00035173]
[1761044890363,5.05792437,108470.0,108460.0,0.00035173]
[1761044892049,5.05892437,108470.0,108460.0,0.00035173]
[1761044894021,5.06262203,108470.0,108460.0,0.00035173]
[1761044899460,5.03883986,108470.0,108460.0,0.00035173]
[1761044899833,4.63443939,108470.0,108460.0,0.00035173]
[1761044903834,0.61520178,108470.0,108460.0,0.00035173]
[1761044904034,1.13652225,108470.0,108460.0,0.00035173]
[1761044904782,0.92978324,108470.0,108460.0,0.00035173]
[1761044904982,1.04670324,108470.0,108460.0,0.00035173]
[1761044905988,1.04570324,108470.0,108460.0,0.00035173]
[1761044906187,1.09646966,108470.0,108460.0,0.00035173]
[1761044912856,1.09674574,108470.0,108460.0,0.00035173]
[1761044914707,0.75674574,108470.0,108460.0,0.00035173]
[1761044921703,0.35206919,108470.0,108460.0,0.00035173]
[1761044921949,0.75674574,108470.0,108460.0,0.00035173]
[1761044923876,3.75674574,108470.0,108460.0,0.00035173]
[1761044924002,3.84656475,108470.0,108460.0,0.00035173]
[1761044924421,3.90272218,108470.0,108460.0,0.00035173]
[1761044925279,3.87429373,108470.0,108460.0,0.00035173]
[1761044926249,3.46961718,108470.0,108460.0,0.00035173]
[1761044926455,3.87429373,108470.0,108460.0,0.00035173]
[1761044938203,3.88875627,108470.0,108460.0,0.00035173]
[1761044939153,3.48407972,108470.0,108460.0,0.00035173]
[1761044939334,3.88875627,108470.0,108460.0,0.00035173]
[1761044942690,3.81823496,108470.0,108460.0,0.00035173]
[1761044943079,3.90805397,108470.0,108460.0,0.00035173]
[1761044947032,4.68026767,108470.0,108460.0,1e-08]
[1761044948404,4.71744995,108470.0,108460.0,1e-08]
[1761044949395,4.6899128,108470.0,108460.0,1e-08]
[1761044949996,4.69991279,108470.0,108460.0,1e-08]
[1761044950729,4.68545025,108470.0,108460.0,1e-08]
[1761044953273,4.69991509,108470.0,108460.0,1e-08]
[1761044955557,4.69976759,108470.0,108460.0,1e-08]
[1761044956622,4.24886877,108470.0,108460.0,1e-08]
[1761044957532,4.28505105,108470.0,108460.0,1e-08]
[1761044963638,4.6897276,108470.0,108460.0,1e-08]
[1761044963912,0.58911033,108440.0,108430.0,0.0002]
[1761044964120,3.88559776,108440.0,108430.0,0.0002]
[1761044964736,3.90006361,108440.0,108430.0,0.0002]
[1761044965389,3.91976526,108440.0,108430.0,0.0002]
[1761044965825,3.92780182,108440.0,108430.0,0.0002]
[1761044967076,3.93930734,108440.0,108430.0,0.0002]
[1761044969343,3.93930734,108440.0,108430.0,0.00125553]
[1761044974906,4.74967918,108440.0,108430.0,0.00125553]
[1761044978338,5.08967918,108440.0,108430.0,0.00125553]
[1761044979184,5.1180877,108440.0,108430.0,0.00125553]
[1761044979792,3.18448482,108410.0,108400.0,0.00874919]
[1761044979933,4.2401487,108410.0,108400.0,0.0002]
[1761044980452,0.27800309,108410.0,108400.0,0.00125595]
[1761044980656,0.79977922,108410.0,108400.0,0.00125595]
[1761044983816,0.68301922,108410.0,108400.0,0.00125595]
[1761044984018,0.79977922,108410.0,108400.0,0.00125595]
[1761044984258,0.68301922,108410.0,108400.0,0.00125595]
[1761044984464,0.88959823,108410.0,108400.0,0.00125595]
[1761044984624,0.77283823,108410.0,108400.0,0.00125595]
[1761044984845,0.88959823,108410.0,108400.0,0.00125595]
[1761044985247,0.77283823,108410.0,108400.0,0.00125595]
[1761044985448,0.79977922,108410.0,108400.0,0.00125595]
[1761044986361,1.20479535,108410.0,108400.0,0.00125595]
[1761044987981,4.20479535,108410.0,108400.0,0.00125595]
[1761044988545,6.21204214,108410.0,108400.0,1e-08]
[1761044988685,5.0244907,108410.0,108400.0,1e-08]
[1761044988884,4.67088507,108410.0,108400.0,1e-08]
[1761044990323,4.51794279,108410.0,108400.0,1e-08]
[1761044990526,4.63470279,108410.0,108400.0,1e-08]
[1761044990730,4.6491741,108410.0,108400.0,1e-08]
[1761044993163,4.66364511,108410.0,108400.0,1e-08]
[1761044993554,5.05419023,108410.0,108400.0,1e-08]
[1761044994061,4.6491741,108410.0,108400.0,1e-08]
[1761044995074,5.05419023,108410.0,108400.0,1e-08]
[1761044995971,4.6491741,108410.0,108400.0,1e-08]
[1761044996519,4.66364523,108410.0,108400.0,1e-08]
[1761044997230,5.06866136,108410.0,108400.0,1e-08]
[1761044997451,4.66364523,108410.0,108400.0,0.01000001]
[1761044998638,4.77573251,108400.0,108390.0,0.00028]
[1761044998924,4.46340572,108400.0,108390.0,0.00028]
[1761044999127,3.65337346,108400.0,108390.0,0.00028]
[1761044999339,4.46710554,108400.0,108390.0,0.00028]
[1761044999751,4.46710554,108400.0,108390.0,0.00077599]
[1761045000589,3.61802067,108400.0,108390.0,0.00077599]
[1761045000802,4.54485293,108400.0,108390.0,0.00077599]
[1761045002890,3.00369982,108400.0,108390.0,0.00077599]
[1761045003128,0.31416683,108440.0,108390.0,0.00077599]
[1761045003129,0.18441689,108450.0,108410.0,0.00922424]
[1761045003348,0.19366209,108460.0,108440.0,0.40501613]
[1761045003576,0.31066209,108460.0,108440.0,0.40501613]
[1761045003849,0.18441678,108450.0,108440.0,0.40501613]
[1761045004071,0.18441678,108450.0,108440.0,0.58944991]
[1761045004297,0.20284495,108450.0,108440.0,0.40501613]
[1761045004516,0.20284495,108450.0,108440.0,0.58959866]
[1761045004731,0.02057552,108450.0,108440.0,0.58959866]
[1761045004949,0.00214735,108450.0,108440.0,0.58959866]
[1761045005167,0.18656413,108450.0,108440.0,0.58959866]
[1761045005404,0.00214735,108450.0,108440.0,0.58959866]